fUSD/lending_fUSD_20250223
["ID","MTS","AMOUNT","RATE_DAILY","PERIOD"]
[354148049,1740287458976,-5100.0,0.0001998,30]
[354148050,1740287458986,-4940.0,0.0001998,29]
[354148051,1740287458996,-5100.0,0.0001998,32]
[354148052,1740287459127,-151.0,0.0001998,2]
[354148053,1740287459138,-151.0,0.0001998,2]
[354148054,1740287459147,-151.0,0.00019984,2]
[354148055,1740287459156,-45657.45520021,0.0001999,2]
[354148056,1740287459258,-16503.54479979,0.0001999,2]
[354148057,1740287459268,-151.0,0.0001999,2]
[354148058,1740287459279,-189.504593,0.0001999,2]
[354148059,1740287459289,-151.0,0.0001999,2]
[354148060,1740287459299,-300.0,0.00019999,2]
[354148061,1740287459309,-32626.58834775,0.00019999,2]
[354148062,1740287459319,-670.13364309,0.00019999,30]
[354148063,1740287459329,-56150.62,0.00019999,2]
[354148064,1740287459338,-151.0,0.00019999,2]
[354148065,1740287459348,-151.0,0.00019999,2]
[354148066,1740287459357,-376.436502,0.00019999,2]
[354148067,1740287459366,-376.436502,0.00019999,2]
[354148068,1740287459376,-444.624374,0.00019999,2]
[354148069,1740287459386,-444.624374,0.00019999,2]
[354148070,1740287459396,-151.0,0.00019999,2]
[354148071,1740287459405,-160.311481,0.00019999,2]
[354148072,1740287459415,-160.311481,0.00019999,2]
[354148073,1740287459425,-151.0,0.00019999,2]
[354148074,1740287459434,-151.0,0.00019999,2]
[354148075,1740287459443,-886.973651,0.00019999,2]
[354148076,1740287459453,-886.973651,0.00019999,2]
[354148077,1740287459462,-151.0,0.00019999,2]
[354148078,1740287459471,-272.087552,0.00019999,2]
[354148079,1740287459480,-272.087552,0.00019999,2]
[354148080,1740287459489,-10000.0,0.00019999,2]
[354148081,1740287459499,-9595.7422755,0.00019999,2]
[354148082,1740287459511,-404.2577245,0.00019999,2]
[354148083,1740287459522,-151.0,0.00019999,2]
[354148084,1740287459531,-427.704001,0.00019999,2]
[354148085,1740287459542,-427.704001,0.00019999,2]
[354148086,1740287459551,-633.78,0.00019999,3]
[354148087,1740287459560,-633.78,0.00019999,3]
[354148088,1740287459570,-633.78,0.00019999,3]
[354148089,1740287459580,-633.78,0.00019999,3]
[354148090,1740287459589,-633.78,0.00019999,3]
[354148091,1740287459599,-633.78,0.00019999,3]
[354148092,1740287459608,-633.78,0.00019999,3]
[354148093,1740287459618,-633.78,0.00019999,3]
[354148094,1740287459627,-633.78,0.00019999,3]
[354148095,1740287459637,-633.95,0.00019999,3]
[354148096,1740287459646,-188.799967,0.00019999,2]
[354148097,1740287459656,-159.34671,0.00019999,2]
[354148098,1740287459666,-159.34671,0.00019999,2]
[354148099,1740287459676,-190.897104,0.00019999,2]
[354148100,1740287459685,-190.897104,0.00019999,2]
[354148101,1740287459695,-1012.816318,0.00019999,2]
[354148102,1740287459704,-1012.816318,0.00019999,2]
[354148103,1740287459714,-429.92847,0.00019999,2]
[354148104,1740287459724,-429.92847,0.00019999,2]
[354148105,1740287459734,-151.0,0.00019999,2]
[354148106,1740287459744,-1866.002883,0.00019999,2]
[354148107,1740287459753,-1866.002883,0.00019999,2]
[354148108,1740287459763,-12343.5813365,0.0002,7]
[354148109,1740287459774,-1065.83165509,0.0002,7]
[354148111,1740287606730,305.43,8.767e-05,2]
[354148112,1740287656300,1038.07742873,0.00016438,60]
[354148132,1740288632288,-1000.0,9.8e-05,2]
[354148135,1740288632298,-265.3343,9.8e-05,2]
[354148138,1740288632307,-150.0,9.872e-05,2]
[354148140,1740288632317,-3987.58569996,0.0001,2]
[354148143,1740288632328,-1766.6000005,0.0001,2]
[354148144,1740288632339,-950.50976812,0.0001,2]
[354148145,1740288632350,-3961.95512933,0.0001,2]
[354148146,1740288632361,-425.85763782,0.0001,2]
[354148147,1740288632374,-2776.34499994,0.0001,2]
[354148148,1740288632468,-996.59053784,0.0001,2]
[354148149,1740288632528,-970.77143134,0.0001,2]
[354148150,1740288632542,-26276.91881602,0.0001,2]
[354148151,1740288632553,-451260.47343346,0.0001,2]
[354148152,1740288632565,-308.13345431,0.0001,2]
[354148153,1740288632593,-4011.45851941,0.0001,2]
[354148154,1740288632605,-3207.30363253,0.0001,2]
[354148155,1740288632658,-5620.87126578,0.0001,2]
[354148156,1740288632717,-518.32839176,0.0001,2]
[354148172,1740288638199,-1756.33430446,0.0001,2]
[354148173,1740288638211,-1040.67,0.0001,2]
[354148174,1740288638222,-13885.02116116,0.0001,2]
[354148175,1740288638233,-72641.70503603,0.0001,2]
[354148176,1740288638246,-925.0,0.0001,2]
[354148177,1740288638261,-6066.0,0.0001,2]
[354148178,1740288638271,-7194.21140675,0.0001,2]
[354148179,1740288638283,-487.64485839,0.0001,2]
[354148180,1740288638294,-53892.17743685,0.0001,2]
[354148181,1740288638305,-9440.0,0.0001,2]
[354148182,1740288638316,-252.90102083,0.0001,2]
[354148183,1740288638374,-455.625,0.0001,2]
[354148184,1740288638386,-10736.77896251,0.0001,2]
[354148185,1740288638397,-6667.10530991,0.0001,2]
[354148186,1740288638408,-2437.59954358,0.0001,2]
[354148187,1740288638431,-1838.98,0.0001,2]
[354148188,1740288638442,-417.93362683,0.0001,2]
[354148189,1740288638454,-20000.0,0.0001,2]
[354148190,1740288638466,-2774.27026423,0.0001,2]
[354148191,1740288638489,-564.48238965,0.0001,2]
[354148192,1740288638504,-712.33,0.0001,2]
[354148193,1740288638515,-2219.533677,0.0001,2]
[354148194,1740288638525,-1109.58021,0.0001,2]
[354148235,1740288640393,-500.0,0.0001,2]
[354148237,1740288640404,-577.46205938,0.0001,2]
[354148239,1740288640416,-1136.47245619,0.0001,2]
[354148241,1740288640428,-1034.30586312,0.0001,2]
[354148242,1740288640440,-399.99073812,0.0001,2]
[354148243,1740288640452,-462.00995226,0.0001,2]
[354148244,1740288640463,-25340.36827717,0.0001,2]
[354148247,1740288640474,-427.87521252,0.0001,2]
[354148250,1740288640499,-2429.4141106,0.0001,2]
[354148252,1740288640510,-10310.28202644,0.0001,2]
[354148259,1740288640558,-647.86347494,0.0001,2]
[354148261,1740288640570,-783.34611875,0.0001,2]
[354148263,1740288640583,-938.99999995,0.0001,2]
[354148266,1740288640594,-19232.898044,0.0001,2]
[354148270,1740288640621,-2926.95320373,0.0001,2]
[354148277,1740288640680,-955.0,0.0001,2]
[354148290,1740288640791,-620.02291574,0.0001,2]
[354148293,1740288640802,-654.839996,0.0001,2]
[354148295,1740288640813,-6492.98264759,0.0001,2]
[354148578,1740288643297,-3176.56692116,0.0001,2]
[354148589,1740288643357,-506.62630079,0.0001,2]
[354148593,1740288643370,-352.72799642,0.0001,2]
[354148596,1740288643384,-192999.99999994,0.0001,2]
[354148598,1740288643396,-76099.7436,0.0001,2]
[354148601,1740288643408,-485.305,0.0001,2]
[354148603,1740288643421,-631.44,0.0001,2]
[354148605,1740288643434,-1356.4999996,0.0001,2]
[354148607,1740288643447,-547.25000032,0.0001,2]
[354148609,1740288643459,-532546.21089102,0.0001,2]
[354148612,1740288643471,-8887.0000005,0.0001,2]
[354148614,1740288643486,-55979.90415979,0.0001,2]
[354148616,1740288643499,-14948.63452145,0.0001,2]
[354148621,1740288643535,-643.3159777,0.0001,2]
[354148629,1740288643597,-2045.09754211,0.0001,2]
[354148631,1740288643608,-61653.07095395,0.0001,2]
[354148633,1740288643619,-1244.38494573,0.0001,2]
[354148635,1740288643631,-19852.51822778,0.0001,2]
[354148637,1740288643642,-5197.04994013,0.0001,2]
[354148775,1740288646235,-16217.62646775,0.0001,2]
[354148776,1740288646247,-780.18539087,0.0001,2]
[354148777,1740288646258,-851.19,0.0001,2]
[354148778,1740288646358,-10577.79024794,0.0001,2]
[354148779,1740288646370,-1444.60801113,0.0001,2]
[354148780,1740288646391,-20010.07656974,0.0001,2]
[354148781,1740288646405,-467.96961399,0.0001,2]
[354148782,1740288646416,-251.10073731,0.0001,2]
[354148783,1740288646497,-1081.03146575,0.0001,2]
[354148784,1740288646508,-4772.33080663,0.0001,2]
[354148785,1740288646519,-111922.82608086,0.0001,2]
[354148793,1740288715264,177.75,8.767e-05,2]
[354148798,1740289468393,760.91461996,9.51e-05,2]
[354148799,1740289497399,6937.0,9.509e-05,2]
[354148800,1740289672982,429.3,8.22e-05,2]
[354148802,1740289796692,161.68,8.767e-05,2]
[354148806,1740289831495,-1792.01967,9.51e-05,2]
[354148807,1740289831506,-7447.06571004,9.51e-05,2]
[354148808,1740289831516,-150.0,9.655e-05,2]
[354148809,1740289831525,-300.0,9.799e-05,2]
[354148810,1740289831534,-1004.362,9.8e-05,2]
[354148811,1740289831543,-7251.99775696,9.9e-05,2]
[354148812,1740289831554,-508.47198714,9.9e-05,2]
[354148813,1740289831744,-6827.6018559,9.9e-05,2]
[354148814,1740289831753,-250.0,9.927e-05,2]
[354148818,1740289831989,-150.0,9.973e-05,2]
[354148819,1740289832001,-162.37829251,9.973e-05,2]
[354148820,1740289832011,-51620.11092546,0.0001,2]
[354148821,1740289832022,-1137.0587628,0.0001,2]
[354148825,1740289837419,-1340.17476812,0.0001,2]
[354148826,1740289837430,-1510.92569718,0.0001,2]
[354148827,1740289837441,-1059.09355,0.0001,2]
[354148828,1740289837537,-2456.37001342,0.0001,2]
[354148829,1740289837549,-1249.3,0.0001,2]
[354148830,1740289837587,-6269.49777717,0.0001,2]
[354148831,1740289837599,-351625.02693913,0.0001,2]
[354148832,1740289837608,-1139753.06861515,0.0001,2]
[354148833,1740289837617,-550.0,0.0001,2]
[354148834,1740289837626,-4070.29872914,0.0001,2]
[354148835,1740289837635,-481.75356795,0.0001,2]
[354148836,1740289837644,-400.78673427,0.0001,2]
[354148837,1740289837653,-193.78294043,0.0001,2]
[354148838,1740289837663,-165.20637743,0.0001,2]
[354148839,1740289837672,-277.45786,0.0001,2]
[354148840,1740289837681,-10914.0859546,0.0001,2]
[354148841,1740289837691,-531.06851034,0.0001,2]
[354148842,1740289837702,-747.36792719,0.0001,2]
[354148843,1740289837711,-251.44,0.00010141,2]
[354148844,1740289837720,-166.39,0.00010241,2]
[354148845,1740289837729,-1000.0,0.00010306,2]
[354148846,1740289837739,-357.99,0.00010335,2]
[354148847,1740289837749,-500.0,0.00010379,2]
[354148848,1740289837760,-150.0,0.00010405,2]
[354148850,1740289837769,-150.0,0.00010461,2]
[354148852,1740289837779,-150.0,0.00010461,2]
[354148854,1740289837788,-429.3,0.00010484,2]
[354148856,1740289837796,-500.0,0.0001078,2]
[354148858,1740289837808,-205.04019374,0.000109,2]
[354148860,1740289837819,-169.61560758,0.00010941,2]
[354148862,1740289837828,-865.23359426,0.00010941,2]
[354148863,1740289837836,-346.091292,0.00010941,2]
[354148865,1740289837847,-217.461935,0.00010958,2]
[354148867,1740289837855,-158.585107,0.00010958,2]
[354148868,1740289837864,-184.208013,0.00010958,2]
[354148869,1740289837873,-500.0,0.00010958,2]
[354148870,1740289837883,-500.0,0.00010958,2]
[354148871,1740289837891,-345.36741326,0.00010958,2]
[354148872,1740289837900,-500.0,0.00010958,2]
[354148873,1740289837909,-500.0,0.00010958,2]
[354148875,1740289837918,-500.0,0.00010958,2]
[354148876,1740289837927,-500.0,0.00010958,2]
[354148877,1740289837936,-500.0,0.00010958,2]
[354148878,1740289837945,-500.0,0.00010958,2]
[354148879,1740289837954,-500.0,0.00010958,2]
[354148880,1740289837963,-500.0,0.00010958,2]
[354148881,1740289837972,-500.0,0.00010958,2]
[354148882,1740289837981,-500.0,0.00010958,2]
[354148883,1740289837990,-500.0,0.00010958,2]
[354148884,1740289837999,-504.1683852,0.00010958,2]
[354148885,1740289838007,-500.0,0.00010958,2]
[354148886,1740289838016,-500.0,0.00010958,2]
[354148887,1740289838025,-500.0,0.00010958,2]
[354148888,1740289838033,-500.0,0.00010958,2]
[354148889,1740289838042,-500.0,0.00010958,2]
[354148890,1740289838051,-500.0,0.00010958,2]
[354148891,1740289838060,-502.40999389,0.00010958,2]
[354148892,1740289838069,-500.0,0.00010958,2]
[354148893,1740289838078,-506.23403283,0.00010958,2]
[354148894,1740289838086,-500.0,0.00010958,2]
[354148895,1740289838095,-500.0,0.00010958,2]
[354148896,1740289838104,-502.01937361,0.00010958,2]
[354148897,1740289838113,-150.72,0.00010958,2]
[354148898,1740289838123,-500.0,0.00010958,2]
[354148899,1740289838132,-500.0,0.00010958,2]
[354148900,1740289838142,-500.0,0.00010958,2]
[354148901,1740289838151,-500.0,0.00010958,2]
[354148902,1740289838159,-500.0,0.00010958,2]
[354148903,1740289838168,-500.0,0.00010958,2]
[354148904,1740289838177,-500.0,0.00010958,2]
[354148905,1740289838186,-500.0,0.00010958,2]
[354148906,1740289838195,-500.0,0.00010958,2]
[354148907,1740289838203,-500.0,0.00010958,2]
[354148908,1740289838212,-608.65,0.00010958,2]
[354148909,1740289838221,-500.0,0.00010958,2]
[354148910,1740289838231,-500.0,0.00010958,2]
[354148911,1740289838239,-500.0,0.00010958,2]
[354148912,1740289838248,-500.0,0.00010958,2]
[354148913,1740289838257,-500.0,0.00010958,2]
[354148914,1740289838266,-507.87413791,0.00010958,2]
[354148915,1740289838275,-500.65977523,0.00010958,2]
[354148916,1740289838284,-500.0,0.00010958,2]
[354148917,1740289838293,-500.0,0.00010958,2]
[354148918,1740289838302,-500.0,0.00010958,2]
[354148919,1740289838311,-500.0,0.00010958,2]
[354148920,1740289838319,-500.0,0.00010958,2]
[354148921,1740289838328,-506.6051942,0.00010958,2]
[354148922,1740289838337,-500.0,0.00010958,2]
[354148923,1740289838346,-500.0,0.00010958,2]
[354148924,1740289838355,-500.0,0.00010958,2]
[354148925,1740289838364,-580.21,0.00010958,2]
[354148926,1740289838373,-500.0,0.00010958,2]
[354148927,1740289838382,-500.0,0.00010958,2]
[354148928,1740289838392,-500.0,0.00010958,2]
[354148929,1740289838401,-500.0,0.00010958,2]
[354148930,1740289838410,-500.0,0.00010958,2]
[354148931,1740289838419,-500.0,0.00010958,2]
[354148932,1740289838428,-501.28040181,0.00010958,2]
[354148933,1740289838438,-500.0,0.00010958,2]
[354148934,1740289838446,-500.0,0.00010958,2]
[354148935,1740289838455,-500.0,0.00010958,2]
[354148936,1740289838465,-500.0,0.00010958,2]
[354148937,1740289838474,-500.0,0.00010958,2]
[354148938,1740289838484,-500.0,0.00010958,2]
[354148939,1740289838493,-590.47208174,0.00010958,2]
[354148940,1740289838502,-500.0,0.00010958,2]
[354148941,1740289838512,-500.0,0.00010958,2]
[354148942,1740289838521,-500.0,0.00010958,2]
[354148943,1740289838530,-500.0,0.00010958,2]
[354148944,1740289838539,-500.0,0.00010958,2]
[354148945,1740289838548,-500.0,0.00010958,2]
[354148946,1740289838557,-500.0,0.00010958,2]
[354148947,1740289838566,-500.0,0.00010958,2]
[354148948,1740289838575,-502.25817612,0.00010958,2]
[354148949,1740289838584,-500.0,0.00010958,2]
[354148950,1740289838592,-500.0,0.00010958,2]
[354148951,1740289838602,-501.26042803,0.00010958,2]
[354148952,1740289838611,-500.0,0.00010958,2]
[354148953,1740289838620,-500.0,0.00010958,2]
[354148954,1740289838628,-500.92287715,0.00010958,2]
[354148955,1740289838637,-500.0,0.00010958,2]
[354148956,1740289838646,-564.68,0.00010958,2]
[354148957,1740289838655,-500.0,0.00010958,2]
[354148958,1740289838663,-501.82969391,0.00010958,2]
[354148959,1740289838672,-500.0,0.00010958,2]
[354148960,1740289838681,-503.82260645,0.00010958,2]
[354148961,1740289838689,-500.0,0.00010958,2]
[354148962,1740289838698,-500.0,0.00010958,2]
[354148963,1740289838707,-500.0,0.00010958,2]
[354148964,1740289838717,-500.0,0.00010958,2]
[354148965,1740289838726,-512.58401007,0.00010958,2]
[354148966,1740289838735,-500.0,0.00010958,2]
[354148967,1740289838744,-500.0,0.00010958,2]
[354148968,1740289838753,-500.0,0.00010958,2]
[354148969,1740289838762,-500.0,0.00010958,2]
[354148970,1740289838771,-500.0,0.00010958,2]
[354148971,1740289838780,-500.0,0.00010958,2]
[354148972,1740289838789,-500.0,0.00010958,2]
[354148973,1740289838798,-565.38,0.00010958,2]
[354148974,1740289838811,-500.0,0.00010958,2]
[354148975,1740289838820,-500.0,0.00010958,2]
[354148976,1740289838829,-500.0,0.00010958,2]
[354148977,1740289838838,-500.0,0.00010958,2]
[354148978,1740289838847,-500.0,0.00010958,2]
[354148979,1740289838858,-500.0,0.00010958,2]
[354148980,1740289838867,-500.0,0.00010958,2]
[354148981,1740289838876,-500.0,0.00010958,2]
[354148982,1740289838886,-500.0,0.00010958,2]
[354148983,1740289838895,-516.52540554,0.00010958,2]
[354148984,1740289838904,-500.0,0.00010958,2]
[354148985,1740289838913,-500.0,0.00010958,2]
[354148986,1740289838922,-504.72451715,0.00010958,2]
[354148987,1740289838931,-511.7,0.00010958,2]
[354148988,1740289838940,-504.21029831,0.00010958,2]
[354148989,1740289838949,-500.0,0.00010958,2]
[354148990,1740289838958,-500.0,0.00010958,2]
[354148991,1740289838967,-500.0,0.00010958,2]
[354148992,1740289838977,-500.0,0.00010958,2]
[354148993,1740289838986,-500.0,0.00010958,2]
[354148994,1740289838994,-500.0,0.00010958,2]
[354148995,1740289839003,-500.0,0.00010958,2]
[354148996,1740289839012,-500.0,0.00010958,2]
[354148997,1740289839021,-500.0,0.00010958,2]
[354148998,1740289839030,-500.0,0.00010958,2]
[354148999,1740289839039,-500.0,0.00010958,2]
[354149000,1740289839049,-500.0,0.00010958,2]
[354149001,1740289839058,-500.0,0.00010958,2]
[354149002,1740289839067,-500.0,0.00010958,2]
[354149003,1740289839076,-500.0,0.00010958,2]
[354149004,1740289839085,-596.83,0.00010958,2]
[354149005,1740289839094,-500.0,0.00010958,2]
[354149006,1740289839104,-500.0,0.00010958,2]
[354149007,1740289839114,-500.0,0.00010958,2]
[354149008,1740289839123,-500.0,0.00010958,2]
[354149009,1740289839132,-500.0,0.00010958,2]
[354149010,1740289839142,-500.0,0.00010958,2]
[354149011,1740289839151,-500.0,0.00010958,2]
[354149012,1740289839159,-500.0,0.00010958,2]
[354149013,1740289839169,-500.0,0.00010958,2]
[354149014,1740289839178,-500.0,0.00010958,2]
[354149015,1740289839187,-500.0,0.00010958,2]
[354149016,1740289839197,-500.0,0.00010958,2]
[354149017,1740289839206,-500.0,0.00010958,2]
[354149018,1740289839216,-500.0,0.00010958,2]
[354149019,1740289839225,-500.0,0.00010958,2]
[354149020,1740289839235,-500.0,0.00010958,2]
[354149021,1740289839244,-500.0,0.00010958,2]
[354149022,1740289839254,-500.0,0.00010958,2]
[354149023,1740289839264,-500.0,0.00010958,2]
[354149024,1740289839274,-500.0,0.00010958,2]
[354149025,1740289839283,-500.0,0.00010958,2]
[354149026,1740289839292,-500.0,0.00010958,2]
[354149027,1740289839302,-500.0,0.00010958,2]
[354149028,1740289839311,-500.0,0.00010958,2]
[354149029,1740289839320,-500.0,0.00010958,2]
[354149030,1740289839330,-500.0,0.00010958,2]
[354149031,1740289839339,-500.0,0.00010958,2]
[354149032,1740289839348,-500.0,0.00010958,2]
[354149033,1740289839357,-608.58,0.00010958,2]
[354149034,1740289839366,-500.0,0.00010958,2]
[354149035,1740289839375,-500.0,0.00010958,2]
[354149036,1740289839384,-500.0,0.00010958,2]
[354149037,1740289839393,-500.0,0.00010958,2]
[354149038,1740289839403,-501.91274802,0.00010958,2]
[354149039,1740289839413,-500.0,0.00010958,2]
[354149040,1740289839423,-502.3,0.00010958,2]
[354149041,1740289839432,-500.0,0.00010958,2]
[354149042,1740289839442,-500.0,0.00010958,2]
[354149043,1740289839452,-500.0,0.00010958,2]
[354149044,1740289839461,-501.162319,0.00010958,2]
[354149045,1740289839471,-500.0,0.00010958,2]
[354149046,1740289839480,-574.6,0.00010958,2]
[354149047,1740289839489,-500.0,0.00010958,2]
[354149048,1740289839498,-500.0,0.00010958,2]
[354149049,1740289839507,-500.0,0.00010958,2]
[354149050,1740289839516,-500.0,0.00010958,2]
[354149051,1740289839525,-500.0,0.00010958,2]
[354149052,1740289839534,-500.0,0.00010958,2]
[354149053,1740289839543,-500.0,0.00010958,2]
[354149054,1740289839552,-500.0,0.00010958,2]
[354149055,1740289839561,-500.0,0.00010958,2]
[354149056,1740289839570,-500.0,0.00010958,2]
[354149057,1740289839579,-500.0,0.00010958,2]
[354149058,1740289839588,-501.92124402,0.00010958,2]
[354149060,1740289839597,-500.0,0.00010958,2]
[354149061,1740289839606,-496.71,0.00010958,2]
[354149062,1740289839616,-196.69316642,0.00010958,2]
[354149063,1740289839625,-500.0,0.00010958,2]
[354149064,1740289839634,-500.0,0.00010958,2]
[354149065,1740289839643,-528.87,0.00010958,2]
[354149066,1740289839652,-500.0,0.00010958,2]
[354149067,1740289839661,-625.72,0.00010958,2]
[354149068,1740289839670,-500.0,0.00010958,2]
[354149069,1740289839679,-500.0,0.00010958,2]
[354149070,1740289839688,-500.0,0.00010958,2]
[354149071,1740289839697,-500.0,0.00010958,2]
[354149072,1740289839706,-500.0,0.00010958,2]
[354149073,1740289839715,-500.0,0.00010958,2]
[354149074,1740289839725,-501.15256053,0.00010958,2]
[354149075,1740289839734,-616.48,0.00010958,2]
[354149076,1740289839743,-620.55,0.00010958,2]
[354149077,1740289839753,-500.0,0.00010958,2]
[354149078,1740289839762,-500.0,0.00010958,2]
[354149079,1740289839771,-513.45148956,0.00010958,2]
[354149080,1740289839781,-500.0,0.00010958,2]
[354149081,1740289839791,-502.92848965,0.00010958,2]
[354149082,1740289839800,-534.78484073,0.00010958,2]
[354149083,1740289839813,-500.0,0.00010958,2]
[354149084,1740289839823,-500.0,0.00010958,2]
[354149085,1740289839832,-500.0,0.00010958,2]
[354149086,1740289839841,-500.0,0.00010958,2]
[354149087,1740289839851,-500.0,0.00010958,2]
[354149088,1740289839860,-500.0,0.00010958,2]
[354149089,1740289839869,-500.0,0.00010958,2]
[354149090,1740289839878,-500.0,0.00010958,2]
[354149091,1740289839889,-500.0,0.00010958,2]
[354149092,1740289839897,-500.0,0.00010958,2]
[354149093,1740289839907,-500.0,0.00010958,2]
[354149094,1740289839916,-500.0,0.00010958,2]
[354149095,1740289839925,-503.9014195,0.00010958,2]
[354149096,1740289839934,-501.08196739,0.00010958,2]
[354149097,1740289839943,-500.0,0.00010958,2]
[354149098,1740289839952,-500.0,0.00010958,2]
[354149099,1740289839961,-500.0,0.00010958,2]
[354149100,1740289839970,-500.0,0.00010958,2]
[354149101,1740289839981,-500.0,0.00010958,2]
[354149102,1740289839990,-500.0,0.00010958,2]
[354149103,1740289839999,-508.70988177,0.00010958,2]
[354149104,1740289840009,-500.0,0.00010958,2]
[354149105,1740289840017,-555.15,0.00010958,2]
[354149106,1740289840026,-500.0,0.00010958,2]
[354149107,1740289840035,-500.0,0.00010958,2]
[354149108,1740289840045,-311.55797037,0.00010958,2]
[354149109,1740289840054,-500.0,0.00010958,2]
[354149110,1740289840063,-500.0,0.00010958,2]
[354149111,1740289840073,-618.14,0.00010958,2]
[354149112,1740289840082,-500.0,0.00010958,2]
[354149113,1740289840091,-500.0,0.00010958,2]
[354149115,1740289840100,-500.0,0.00010958,2]
[354149117,1740289840110,-500.0,0.00010958,2]
[354149118,1740289840119,-500.0,0.00010958,2]
[354149119,1740289840129,-312.97957329,0.00010958,2]
[354149120,1740289840139,-500.0,0.00010958,2]
[354149121,1740289840148,-505.68946928,0.00010958,2]
[354149122,1740289840158,-500.0,0.00010958,2]
[354149123,1740289840167,-500.0,0.00010958,2]
[354149124,1740289840176,-500.0,0.00010958,2]
[354149125,1740289840186,-500.0,0.00010958,2]
[354149126,1740289840195,-500.0,0.00010958,2]
[354149127,1740289840204,-500.0,0.00010958,2]
[354149129,1740289840214,-500.0,0.00010958,2]
[354149131,1740289840223,-500.0,0.00010958,2]
[354149133,1740289840231,-500.0,0.00010958,2]
[354149135,1740289840240,-520.67,0.00010958,2]
[354149137,1740289840250,-500.0,0.00010958,2]
[354149139,1740289840259,-500.0,0.00010958,2]
[354149141,1740289840268,-500.0,0.00010958,2]
[354149142,1740289840277,-500.0,0.00010958,2]
[354149144,1740289840286,-500.0,0.00010958,2]
[354149146,1740289840295,-500.00303803,0.00010958,2]
[354149148,1740289840305,-500.0,0.00010958,2]
[354149150,1740289840313,-500.0,0.00010958,2]
[354149152,1740289840323,-500.0,0.00010958,2]
[354149154,1740289840332,-500.0,0.00010958,2]
[354149156,1740289840341,-512.83,0.00010958,2]
[354149158,1740289840350,-500.0,0.00010958,2]
[354149160,1740289840360,-501.65990004,0.00010958,2]
[354149162,1740289840369,-409.05572716,0.00010958,2]
[354149164,1740289840378,-500.0,0.00010958,2]
[354149166,1740289840387,-500.0,0.00010958,2]
[354149168,1740289840396,-506.83659298,0.00010958,2]
[354149170,1740289840406,-500.0,0.00010958,2]
[354149172,1740289840415,-500.75511932,0.00010958,2]
[354149174,1740289840424,-500.0,0.00010958,2]
[354149176,1740289840433,-502.19416286,0.00010958,2]
[354149178,1740289840442,-500.0,0.00010958,2]
[354149180,1740289840451,-500.0,0.00010958,2]
[354149182,1740289840461,-520.31,0.00010958,2]
[354149184,1740289840471,-500.0,0.00010958,2]
[354149186,1740289840480,-500.0,0.00010958,2]
[354149188,1740289840490,-500.0,0.00010958,2]
[354149190,1740289840499,-500.0,0.00010958,2]
[354149192,1740289840508,-607.39,0.00010958,2]
[354149194,1740289840518,-500.0,0.00010958,2]
[354149196,1740289840527,-538.1082908,0.00010958,2]
[354149198,1740289840536,-500.0,0.00010958,2]
[354149200,1740289840545,-505.82181206,0.00010958,2]
[354149202,1740289840555,-500.0,0.00010958,2]
[354149204,1740289840564,-500.0,0.00010958,2]